fUSD/lending_fUSD_20251217
["ID","MTS","AMOUNT","RATE_DAILY","PERIOD"]
[398943217,1766011858232,-7836.2711754,0.00018604,2]
[398943218,1766011858241,-500.0,0.0001863,8]
[398943219,1766011858251,-600.0,0.0001863,2]
[398943220,1766011858261,-530.0,0.00018696,2]
[398943221,1766011858271,-589.0,0.00018696,2]
[398943222,1766011858280,-4609.0,0.00018737,2]
[398943223,1766011858290,-1000.0,0.0001876,2]
[398943224,1766011858299,-150.91,0.000188,2]
[398943225,1766011858309,-150.91,0.000188,2]
[398943226,1766011858319,-152.0,0.0001881,2]
[398943227,1766011858328,-152.0,0.0001881,2]
[398943228,1766011858337,-152.0,0.0001881,2]
[398943229,1766011858347,-835.0,0.0001881,2]
[398943230,1766011858356,-152.0,0.0001881,2]
[398943231,1766011858365,-152.0,0.0001881,2]
[398943232,1766011858374,-152.0,0.0001881,2]
[398943233,1766011858384,-1254.0,0.0001881,2]
[398943234,1766011858393,-835.0,0.0001881,2]
[398943235,1766011858403,-152.0,0.0001881,2]
[398943236,1766011858412,-152.0,0.0001881,2]
[398943237,1766011858422,-1254.0,0.0001881,2]
[398943238,1766011858431,-152.0,0.0001881,2]
[398943239,1766011858440,-835.0,0.0001881,2]
[398943240,1766011858450,-152.0,0.0001881,2]
[398943241,1766011858459,-1254.0,0.0001881,2]
[398943242,1766011858469,-835.0,0.0001881,2]
[398943243,1766011858478,-152.0,0.0001881,2]
[398943244,1766011858487,-152.0,0.0001881,2]
[398943245,1766011858496,-1254.0,0.0001881,2]
[398943246,1766011858506,-835.0,0.0001881,2]
[398943247,1766011858516,-152.0,0.0001881,2]
[398943248,1766011858525,-1254.0,0.0001881,2]
[398943249,1766011858535,-152.0,0.0001881,2]
[398943250,1766011858544,-1254.0,0.0001881,2]
[398943251,1766011858553,-152.0,0.0001881,2]
[398943252,1766011858562,-152.0,0.0001881,2]
[398943253,1766011858571,-835.0,0.0001881,2]
[398943254,1766011858580,-1254.0,0.0001881,2]
[398943255,1766011858590,-152.0,0.0001881,2]
[398943256,1766011858599,-152.0,0.0001881,2]
[398943257,1766011858609,-835.0,0.0001881,2]
[398943258,1766011858619,-1254.0,0.0001881,2]
[398943259,1766011858628,-152.0,0.0001881,2]
[398943260,1766011858640,-152.0,0.0001881,2]
[398943261,1766011858650,-1254.0,0.0001881,2]
[398943262,1766011858659,-835.0,0.0001881,2]
[398943263,1766011858669,-152.0,0.0001881,2]
[398943264,1766011858678,-152.0,0.0001881,2]
[398943265,1766011858688,-1254.0,0.0001881,2]
[398943266,1766011858697,-835.0,0.0001881,2]
[398943267,1766011858707,-152.0,0.0001881,2]
[398943268,1766011858716,-152.0,0.0001881,2]
[398943269,1766011858726,-1254.0,0.0001881,2]
[398943270,1766011858736,-835.0,0.0001881,2]
[398943271,1766011858746,-152.0,0.0001881,2]
[398943272,1766011858755,-152.0,0.0001881,2]
[398943273,1766011858764,-1254.0,0.0001881,2]
[398943274,1766011858774,-835.0,0.0001881,2]
[398943275,1766011858783,-152.0,0.0001881,2]
[398943276,1766011858792,-152.0,0.0001881,2]
[398943277,1766011858801,-835.0,0.0001881,2]
[398943278,1766011858811,-1254.0,0.0001881,2]
[398943279,1766011858820,-152.0,0.0001881,2]
[398943280,1766011858830,-152.0,0.0001881,2]
[398943281,1766011858840,-1254.0,0.0001881,2]
[398943282,1766011858849,-152.0,0.0001881,2]
[398943283,1766011858858,-152.0,0.0001881,2]
[398943284,1766011858867,-835.0,0.0001881,2]
[398943285,1766011858876,-152.0,0.0001881,2]
[398943286,1766011858885,-152.0,0.0001881,2]
[398943287,1766011858894,-1254.0,0.0001881,2]
[398943288,1766011858903,-835.0,0.0001881,2]
[398943289,1766011858912,-152.0,0.0001881,2]
[398943290,1766011858921,-152.0,0.0001881,2]
[398943291,1766011858930,-1254.0,0.0001881,2]
[398943292,1766011858939,-835.0,0.0001881,2]
[398943293,1766011858948,-152.0,0.0001881,2]
[398943294,1766011858957,-152.0,0.0001881,2]
[398943295,1766011858967,-1254.0,0.0001881,2]
[398943296,1766011858975,-152.0,0.0001881,2]
[398943297,1766011858984,-835.0,0.0001881,2]
[398943298,1766011859368,-152.0,0.0001881,2]
[398943299,1766011859386,-1254.0,0.0001881,2]
[398943300,1766011859396,-152.0,0.0001881,2]
[398943301,1766011859405,-471.59604234,0.0001881,2]
[398943302,1766011859415,-152.0,0.0001881,2]
[398943303,1766011859424,-1254.0,0.0001881,2]
[398943304,1766011859434,-152.0,0.0001881,2]
[398943305,1766011859444,-152.0,0.0001881,2]
[398943306,1766011859453,-1254.0,0.0001881,2]
[398943307,1766011859463,-200.5746395,0.0001881,2]
[398943308,1766011859472,-152.0,0.0001881,2]
[398943309,1766011859481,-1254.0,0.0001881,2]
[398943310,1766011859491,-153.0,0.0001881,2]
[398943311,1766011859500,-153.0,0.0001881,2]
[398943312,1766011859510,-152.0,0.0001881,2]
[398943313,1766011859520,-153.0,0.0001881,2]
[398943314,1766011859530,-152.0,0.0001881,2]
[398943315,1766011859539,-153.0,0.0001881,2]
[398943316,1766011859549,-1254.0,0.0001881,2]
[398943317,1766011859559,-152.0,0.0001881,2]
[398943318,1766011859569,-153.0,0.0001881,2]
[398943319,1766011859578,-1254.0,0.0001881,2]
[398943320,1766011859587,-152.0,0.0001881,2]
[398943321,1766011859597,-153.0,0.0001881,2]
[398943322,1766011859607,-1254.0,0.0001881,2]
[398943323,1766011859616,-282.05835074,0.0001881,2]
[398943324,1766011859626,-153.0,0.0001881,2]
[398943325,1766011859636,-1254.0,0.0001881,2]
[398943326,1766011859646,-153.0,0.0001881,2]
[398943327,1766011859655,-153.0,0.0001881,2]
[398943328,1766011859665,-1254.0,0.0001881,2]
[398943329,1766011859675,-153.0,0.0001881,2]
[398943330,1766011859684,-238.61888056,0.0001881,2]
[398943331,1766011859694,-153.0,0.0001881,2]
[398943332,1766011859704,-153.0,0.0001881,2]
[398943333,1766011859713,-153.0,0.0001881,2]
[398943334,1766011859723,-153.0,0.0001881,2]
[398943335,1766011859733,-153.0,0.0001881,2]
[398943336,1766011859742,-153.0,0.0001881,2]
[398943337,1766011859752,-153.0,0.0001881,2]
[398943338,1766011859761,-153.0,0.0001881,2]
[398943339,1766011859770,-153.0,0.0001881,2]
[398943340,1766011859780,-153.0,0.0001881,2]
[398943341,1766011859789,-153.0,0.0001881,2]
[398943342,1766011859799,-153.0,0.0001881,2]
[398943343,1766011859808,-153.0,0.0001881,2]
[398943344,1766011859817,-282.94687549,0.0001881,2]
[398943345,1766011859826,-1254.0,0.0001881,2]
[398943346,1766011859836,-551.44474318,0.00018833,2]
[398943347,1766011859845,-589.0,0.00018833,2]
[398943348,1766011859856,-151.0,0.0001886,2]
[398943349,1766011859865,-260.991985,0.00018863,2]
[398943350,1766011859875,-150.0,0.00018883,5]
[398943351,1766011859884,-322.6107,0.00018887,2]
[398943352,1766011859894,-277.35679052,0.00018887,2]
[398943353,1766011859903,-151.0,0.00018887,2]
[398943354,1766011859913,-794.82511705,0.00018887,2]
[398943355,1766011859922,-599.60298507,0.00018888,2]
[398943356,1766011859932,-2345.0,0.00018889,2]
[398943357,1766011859941,-640.24385345,0.00018889,2]
[398943358,1766011859951,-149696.2523359,0.00018897,2]
[398943359,1766011859960,-82826.697696,0.00018897,2]
[398943360,1766011859970,-110435.5969278,0.00018897,2]
[398943361,1766011859979,-151.0,0.00018897,2]
[398943362,1766011859988,-151.0,0.00018897,2]
[398943363,1766011859998,-225.76096817,0.00018897,2]
[398943364,1766011860007,-151.0,0.00018897,2]
[398943365,1766011860016,-151.0,0.00018897,2]
[398943366,1766011860026,-181.335898,0.00018897,2]
[398943367,1766011860035,-181.335898,0.00018897,2]
[398943368,1766011860046,-181.335898,0.00018897,2]
[398943369,1766011860055,-181.335898,0.00018897,2]
[398943370,1766011860068,-600.964048,0.00018897,2]
[398943371,1766011860078,-600.964048,0.00018897,2]
[398943372,1766011860087,-600.964048,0.00018897,2]
[398943373,1766011860097,-600.964048,0.00018897,2]
[398943374,1766011860106,-158.191236,0.00018897,2]
[398943375,1766011860115,-151.0,0.00018897,2]
[398943376,1766011860124,-155.117425,0.00018897,2]
[398943377,1766011860134,-151.0,0.00018897,2]
[398943378,1766011860145,-151.0,0.00018897,2]
[398943379,1766011860155,-433.263895,0.00018897,2]
[398943380,1766011860164,-151.0,0.00018897,2]
[398943381,1766011860174,-433.263895,0.00018897,2]
[398943382,1766011860183,-294.1217,0.00018897,2]
[398943383,1766011860193,-433.263895,0.00018897,2]
[398943384,1766011860203,-433.263895,0.00018897,2]
[398943385,1766011860212,-1047.569837,0.00018897,2]
[398943386,1766011860221,-1047.569837,0.00018897,2]
[398943387,1766011860232,-1047.569837,0.00018897,2]
[398943388,1766011860241,-1047.569837,0.00018897,2]
[398943389,1766011860251,-151.0,0.00018897,2]
[398943390,1766011860260,-151.0,0.00018897,2]
[398943391,1766011860269,-151.0,0.00018897,2]
[398943392,1766011860278,-151.0,0.00018897,2]
[398943393,1766011860287,-151.0,0.00018897,2]
[398943394,1766011860297,-151.0,0.00018897,2]
[398943395,1766011860307,-468.538795,0.00018897,2]
[398943396,1766011860316,-468.538795,0.00018897,2]
[398943397,1766011860325,-468.538795,0.00018897,2]
[398943398,1766011860335,-468.538795,0.00018897,2]
[398943399,1766011860344,-151.0,0.00018897,2]
[398943400,1766011860353,-151.0,0.00018897,2]
[398943401,1766011860362,-151.0,0.00018897,2]
[398943402,1766011860372,-297.545913,0.00018897,2]
[398943403,1766011860381,-432.553476,0.00018897,2]
[398943404,1766011860390,-432.553476,0.00018897,2]
[398943405,1766011860399,-432.553476,0.00018897,2]
[398943406,1766011860409,-432.553476,0.00018897,2]
[398943407,1766011860418,-500.0,0.00018903,2]
[398943408,1766011860428,-500.0,0.00018903,2]
[398943409,1766011860437,-500.0,0.00018904,9]
[398943410,1766011860447,-1523.7193953,0.00018915,2]
[398943411,1766011860456,-1959.0677939,0.00018915,2]
[398943412,1766011860465,-589.0,0.0001897,2]
[398943413,1766011860474,-500.0,0.00018999,2]
[398943414,1766011860483,-500.0,0.00018999,2]
[398943415,1766011860492,-500.0,0.00018999,2]
[398943416,1766011860501,-500.0,0.00018999,2]
[398943417,1766011860511,-500.0,0.00018999,2]
[398943418,1766011860520,-500.0,0.00018999,2]
[398943419,1766011860529,-500.0,0.00018999,2]
[398943420,1766011860539,-1078.56,0.00018999,2]
[398943421,1766011860548,-500.0,0.00018999,2]
[398943422,1766011860557,-500.0,0.00018999,2]
[398943423,1766011860567,-500.0,0.00018999,2]
[398943424,1766011860576,-500.0,0.00018999,2]
[398943425,1766011860586,-500.0,0.00018999,2]
[398943426,1766011860596,-500.0,0.00018999,2]
[398943427,1766011860606,-500.0,0.00018999,2]
[398943428,1766011860616,-414.65148789,0.00018999,2]
[398943429,1766011860626,-111085.05395839,0.00019,2]
[398943430,1766011860635,-111085.05395839,0.00019,2]
[398943431,1766011860645,-157.63541269,0.00019,2]
[398943432,1766011860654,-627.97472388,0.00019,2]
[398943433,1766011860663,-627.97472388,0.00019,2]
[398943434,1766011860673,-150.0,0.000191,7]
[398943435,1766011860683,-589.0,0.00019107,2]
[398943436,1766011860692,-322.20752832,0.00019154,2]
[398943437,1766011860702,-151.12198165,0.00019175,2]
[398943438,1766011860711,-500.0,0.00019178,10]
[398943439,1766011860721,-150.0,0.00019178,2]
[398943440,1766011860730,-600.0,0.00019178,2]
[398943441,1766011860740,-303.04669497,0.00019191,2]
[398943442,1766011860750,-589.0,0.00019244,2]
[398943443,1766011860760,-974.0,0.000193,2]
[398943444,1766011860770,-848.0,0.000193,2]
[398943445,1766011860779,-305.0,0.000193,2]
[398943446,1766011860789,-298.0,0.000193,2]
[398943447,1766011860799,-589.0,0.00019381,2]
[398943448,1766011860809,-15167.57750663,0.00019385,2]
[398943449,1766011860818,-2345.0,0.00019437,2]
[398943450,1766011860828,-663.93287602,0.00019437,2]
[398943451,1766011860837,-1000.0,0.00019438,2]
[398943452,1766011860847,-1247.0,0.0001945,2]
[398943453,1766011860857,-500.0,0.00019452,11]
[398943454,1766011860866,-1000.0,0.00019469,2]
[398943455,1766011860876,-589.0,0.00019518,2]
[398943456,1766011860885,-612.0,0.00019587,2]
[398943457,1766011860895,-3462.518,0.00019587,2]
[398943458,1766011860904,-1607.0,0.00019587,2]
[398943459,1766011860914,-1325.0,0.00019587,2]
[398943460,1766011860924,-160.958,0.00019587,2]
[398943461,1766011860933,-564.0,0.00019587,2]
[398943462,1766011860943,-1261.0,0.00019587,2]
[398943463,1766011860952,-1197.0,0.00019587,2]
[398943464,1766011860961,-921.052,0.00019587,2]
[398943465,1766011860971,-4799.0,0.00019587,2]
[398943466,1766011860981,-563.0,0.00019587,2]
[398943467,1766011860990,-2427.0,0.00019587,2]
[398943468,1766011860999,-6524.0,0.00019587,2]
[398943469,1766011861009,-589.0,0.00019655,2]
[398943470,1766011861018,-500.0,0.00019726,12]
[398943471,1766011861027,-250.0,0.00019726,2]
[398943472,1766011861037,-600.0,0.00019726,2]
[398943473,1766011861047,-202.60726604,0.0001979,2]
[398943474,1766011861056,-589.66464681,0.00019792,2]
[398943475,1766011861070,-2000.0,0.000198,2]
[398943476,1766011861079,-3044.057874,0.0001981,2]
[398943477,1766011861089,-150.0,0.00019935,2]
[398943478,1766011861101,-2345.0,0.00019985,2]
[398943479,1766011861113,-688.49839244,0.00019985,2]
[398943480,1766011861123,-500.0,0.00019999,2]
[398943481,1766011861133,-500.0,0.00019999,2]
[398943482,1766011861144,-486.07430581,0.00019999,2]
[398943483,1766011861154,-500.0,0.00019999,2]
[398943484,1766011861163,-284.85793784,0.00019999,2]
[398943485,1766011861173,-500.0,0.00019999,2]
[398943486,1766011861182,-500.0,0.00019999,2]
[398943487,1766011861192,-301.74978312,0.00019999,2]
[398943488,1766011861201,-500.0,0.00019999,2]
[398943489,1766011861211,-500.0,0.00019999,2]
[398943490,1766011861220,-500.0,0.00019999,2]
[398943491,1766011861229,-250.0,0.0002,2]
[398943492,1766011861239,-5001.92321536,0.0002,2]
[398943493,1766011861248,-2000.0,0.0002,2]
[398943494,1766011861257,-500.0,0.0002,13]
[398943495,1766011861266,-188.59099171,0.0002,20]
[398943496,1766011861276,-186.45,0.0002,2]
[398943497,1766011861285,-1000.0,0.0002,7]
[398943498,1766011861294,-150.0,0.0002,2]
[398943499,1766011861303,-150.0,0.0002,2]
[398943500,1766011861312,-193.73156531,0.0002,2]
[398943501,1766011861321,-8720.0,0.0002001,2]
[398943502,1766011861330,-2000.0,0.0002001,2]
[398943503,1766011861339,-2000.0,0.0002002,2]
[398943504,1766011861348,-2556.986581,0.0002003,2]
[398943505,1766011861357,-1000.0,0.00020116,2]
[398943506,1766011861366,-500.0,0.00020143,2]
[398943507,1766011861376,-1000.0,0.00020187,2]
[398943508,1766011861385,-1000.0,0.00020201,2]
[398943509,1766011861395,-334.5472959,0.00020256,2]
[398943510,1766011861404,-287.61899177,0.00020256,2]
[398943511,1766011861413,-151.0,0.00020256,2]
[398943512,1766011861423,-500.0,0.00020273,14]
[398943513,1766011861435,-350.0,0.00020274,2]
[398943514,1766011861444,-600.0,0.00020274,2]
[398943515,1766011861454,-1000.0,0.00020309,2]
[398943516,1766011861463,-1613.0,0.00020322,2]
[398943517,1766011861472,-7836.2711754,0.00020451,2]
[398943518,1766011861482,-1000.0,0.00020525,2]
[398943519,1766011861491,-2345.0,0.00020533,2]
[398943520,1766011861501,-713.97283296,0.00020533,2]
[398943521,1766011861510,-500.0,0.00020547,15]
[398943522,1766011861520,-21427.61,0.00020548,2]
[398943523,1766011861529,-191.59,0.00020548,2]
[398943524,1766011861539,-3056.0,0.00020611,2]
[398943525,1766011861548,-150.0,0.00020642,2]
[398943526,1766011861558,-500.0,0.00020669,2]
[398943527,1766011861567,-500.0,0.00020669,2]
[398943528,1766011861577,-500.0,0.00020669,2]
[398943529,1766011861587,-500.0,0.00020669,2]
[398943530,1766011861596,-500.0,0.00020669,2]
[398943531,1766011861606,-500.0,0.00020669,2]
[398943532,1766011861616,-500.0,0.00020669,2]
[398943533,1766011861625,-500.0,0.00020669,2]
[398943534,1766011861635,-500.0,0.00020669,2]
[398943535,1766011861644,-1078.56,0.00020669,2]
[398943536,1766011861653,-500.0,0.00020669,2]
[398943537,1766011861666,-500.0,0.00020669,2]
[398943538,1766011861675,-500.0,0.00020669,2]
[398943539,1766011861685,-500.0,0.00020669,2]
[398943540,1766011861694,-500.0,0.00020669,2]
[398943541,1766011861705,-504.60053044,0.00020669,2]
[398943542,1766011861714,-500.0,0.00020669,2]
[398943543,1766011861723,-500.0,0.00020669,2]
[398943544,1766011861732,-500.0,0.00020669,2]
[398943545,1766011861741,-500.0,0.00020669,2]
[398943546,1766011861751,-500.0,0.00020669,2]
[398943547,1766011861760,-500.0,0.00020669,2]
[398943548,1766011861769,-500.0,0.00020669,2]
[398943549,1766011861778,-500.0,0.00020699,2]
[398943550,1766011861787,-500.0,0.00020699,2]
[398943551,1766011861796,-500.0,0.00020699,2]
[398943552,1766011861805,-1078.56,0.00020699,2]
[398943553,1766011861814,-500.0,0.00020699,2]
[398943554,1766011861823,-22558.69624771,0.000207,2]
[398943555,1766011861832,-102919.27659999,0.000207,2]
[398943556,1766011861841,-2000.0,0.000207,2]
[398943557,1766011861851,-151.0,0.00020757,2]
[398943558,1766011861860,-181.335898,0.0002076,2]
[398943559,1766011861869,-181.335898,0.0002076,2]
[398943560,1766011861878,-181.335898,0.0002076,2]
[398943561,1766011861887,-181.335898,0.0002076,2]
[398943562,1766011861897,-600.964048,0.0002076,2]
[398943563,1766011861907,-600.964048,0.0002076,2]
[398943564,1766011861919,-600.964048,0.0002076,2]
[398943565,1766011861928,-600.964048,0.0002076,2]
[398943566,1766011861939,-151.0,0.0002076,2]
[398943567,1766011861948,-151.0,0.0002076,2]
[398943568,1766011861958,-151.0,0.0002076,2]
[398943569,1766011861968,-433.263895,0.0002076,2]
[398943570,1766011861976,-151.0,0.0002076,2]
[398943571,1766011861985,-433.263895,0.0002076,2]
[398943572,1766011861995,-433.263895,0.0002076,2]
[398943573,1766011862003,-433.263895,0.0002076,2]
[398943574,1766011862012,-1047.569837,0.0002076,2]
[398943575,1766011862021,-1047.569837,0.0002076,2]
[398943576,1766011862031,-1047.569837,0.0002076,2]
[398943577,1766011862039,-1047.569837,0.0002076,2]
[398943578,1766011862048,-151.0,0.0002076,2]
[398943579,1766011862057,-151.0,0.0002076,2]
[398943580,1766011862070,-151.0,0.0002076,2]
[398943581,1766011862079,-151.0,0.0002076,2]
[398943582,1766011862089,-151.0,0.0002076,2]
[398943583,1766011862099,-151.0,0.0002076,2]
[398943584,1766011862109,-468.538795,0.0002076,2]
[398943585,1766011862118,-468.538795,0.0002076,2]
[398943586,1766011862129,-468.538795,0.0002076,2]
[398943587,1766011862141,-468.538795,0.0002076,2]
[398943588,1766011862150,-151.0,0.0002076,2]
[398943589,1766011862160,-151.0,0.0002076,2]
[398943590,1766011862170,-151.0,0.0002076,2]
[398943591,1766011862179,-432.553476,0.0002076,2]
[398943592,1766011862189,-432.553476,0.0002076,2]
[398943593,1766011862198,-432.553476,0.0002076,2]
[398943594,1766011862207,-432.553476,0.0002076,2]
[398943595,1766011862216,-1000.0,0.00020795,2]
[398943596,1766011862225,-151.0,0.00020796,2]
[398943597,1766011862235,-151.0,0.00020796,2]
[398943598,1766011862245,-151.0,0.00020796,2]
[398943599,1766011862254,-191.386407,0.00020796,2]
[398943600,1766011862264,-149696.2523359,0.00020796,2]
[398943601,1766011862273,-82826.697696,0.00020796,2]
[398943602,1766011862283,-110435.5969278,0.00020796,2]
[398943603,1766011862293,-500.0,0.00020821,16]
[398943604,1766011862302,-600.0,0.00020822,2]
[398943605,1766011862313,-1523.7193953,0.00020832,2]
[398943606,1766011862324,-1959.0677939,0.00020832,2]
[398943607,1766011862333,-1254.0,0.000209,2]
[398943608,1766011862342,-1254.0,0.000209,2]
[398943609,1766011862351,-1254.0,0.000209,2]
[398943610,1766011862360,-1254.0,0.000209,2]
[398943611,1766011862369,-1254.0,0.000209,2]
[398943612,1766011862378,-1254.0,0.000209,2]
[398943613,1766011862388,-1254.0,0.000209,2]
[398943614,1766011862397,-1254.0,0.000209,2]
[398943615,1766011862408,-1254.0,0.000209,2]
[398943616,1766011862417,-1254.0,0.000209,2]
[398943617,1766011862428,-1254.0,0.000209,2]
[398943618,1766011862436,-1254.0,0.000209,2]
[398943619,1766011862446,-1254.0,0.000209,2]
[398943620,1766011862456,-1254.0,0.000209,2]
[398943621,1766011862467,-1254.0,0.000209,2]
[398943622,1766011862478,-1254.0,0.000209,2]
[398943623,1766011862488,-1254.0,0.000209,2]
[398943624,1766011862497,-1254.0,0.000209,2]
[398943625,1766011862508,-1254.0,0.000209,2]
[398943626,1766011862519,-1254.0,0.000209,2]
[398943627,1766011862536,-1254.0,0.000209,2]
[398943628,1766011862550,-1254.0,0.000209,2]
[398943629,1766011862562,-1254.0,0.000209,2]
[398943630,1766011862577,-811.14555805,0.000209,2]
[398943631,1766011862591,-1254.0,0.000209,2]
[398943632,1766011862606,-153.0,0.000209,2]
[398943633,1766011862620,-154.0,0.000209,2]
[398943634,1766011862631,-152.70212137,0.000209,2]
[398943635,1766011862646,-835.0,0.000209,2]
[398943636,1766011862660,-152.0,0.000209,2]
[398943637,1766011862674,-1254.0,0.000209,2]
[398943638,1766011862690,-1254.0,0.000209,2]
[398943639,1766011862704,-1254.0,0.000209,2]
[398943640,1766011862719,-1254.0,0.000209,2]
[398943641,1766011862733,-1232.86,0.00020951,2]
[398943642,1766011862748,-20000.0,0.00021,2]
[398943643,1766011862762,-1187.78167743,0.00021,2]
[398943644,1766011862778,-196.06014392,0.00021,2]
[398943645,1766011862790,-12459.61,0.00021068,2]
[398943646,1766011862803,-2345.0,0.00021081,2]
[398943647,1766011862815,-740.38982778,0.00021081,2]
[398943648,1766011862829,-151.12198165,0.00021092,2]
[398943649,1766011862843,-500.0,0.00021095,17]
[398943650,1766011862854,-223.0315306,0.00021109,2]
[398943651,1766011862866,-3328.24758892,0.00021335,2]
[398943652,1766011862880,-500.0,0.00021369,18]
[398943653,1766011862892,-717.03,0.0002137,2]
[398943654,1766011862906,-324.66388433,0.000214,14]
[398943655,1766011862917,-1000.0,0.00021416,2]
[398943656,1766011862929,-57294.94785374,0.000215,2]
[398943657,1766011862940,-221.13008369,0.000215,2]
[398943658,1766011862952,-346.92554585,0.00021625,2]
[398943659,1766011862964,-298.26089446,0.00021625,2]
[398943660,1766011862977,-151.0,0.00021625,2]
[398943661,1766011862990,-621.78829552,0.00021627,2]
[398943662,1766011863002,-2345.0,0.00021629,2]
[398943663,1766011863015,-767.7842514,0.00021629,2]
[398943664,1766011863028,-174.98,0.00021643,19]
[398943665,1766011863040,-150.0,0.00021787,2]
[398943666,1766011863054,-150.0,0.00021787,2]
[398943667,1766011863070,-150.0,0.00021787,2]
[398943668,1766011863083,-163.22,0.00021787,2]
[398943669,1766011863095,-150.0,0.00021787,2]
[398943670,1766011863107,-150.0,0.00021787,2]
[398943671,1766011863146,-500.0,0.00021917,7]
[398943672,1766011863160,-295.58,0.00021917,7]
[398943673,1766011863176,-500.0,0.00021917,2]
[398943674,1766011863190,-500.0,0.00021917,2]
[398943675,1766011863205,-500.0,0.00021917,2]
[398943676,1766011863218,-500.0,0.00021917,2]
[398943677,1766011863233,-500.0,0.00021917,2]
[398943678,1766011863247,-500.0,0.00021917,2]
[398943679,1766011863261,-500.0,0.00021917,2]
[398943680,1766011863277,-500.0,0.00021917,2]
[398943681,1766011863290,-500.0,0.00021917,2]
[398943682,1766011863306,-500.0,0.00021917,2]
[398943683,1766011863319,-500.0,0.00021917,2]
[398943684,1766011863334,-500.0,0.00021917,2]
[398943685,1766011863348,-347.77717049,0.00021917,2]
[398943686,1766011863362,-5000.0,0.00021918,2]
[398943687,1766011863375,-151.0,0.00021918,2]
[398943688,1766011863389,-151.0,0.00021918,2]
[398943689,1766011863405,-151.0,0.00021918,2]
[398943690,1766011863418,-151.0,0.00021918,2]
[398943691,1766011863431,-151.0,0.00021918,2]
[398943692,1766011863445,-151.0,0.00021918,2]
[398943693,1766011863458,-151.0,0.00021918,2]
[398943694,1766011863471,-151.0,0.00021918,2]
[398943695,1766011863484,-151.0,0.00021918,2]
[398943696,1766011863497,-151.0,0.00021918,2]
[398943697,1766011863511,-151.0,0.00021918,2]
[398943698,1766011863524,-151.0,0.00021918,2]
[398943699,1766011863537,-151.0,0.00021918,2]
[398943700,1766011863550,-151.0,0.00021918,2]
[398943701,1766011863563,-151.0,0.00021918,2]
[398943702,1766011863576,-298.080241,0.00021918,2]
[398943703,1766011863589,-151.0,0.00021918,2]
[398943704,1766011863602,-151.0,0.00021918,2]
[398943705,1766011863615,-151.0,0.00021918,2]
[398943706,1766011863629,-151.0,0.00021918,2]
[398943707,1766011863642,-151.0,0.00021918,2]
[398943708,1766011863655,-220.820508,0.00021918,2]
[398943709,1766011863668,-500.0,0.00021918,2]
[398943710,1766011863681,-500.0,0.00021999,2]
[398943711,1766011863694,-617.59279202,0.00021999,2]
[398943712,1766011863706,-505.97366229,0.00021999,2]
[398943713,1766011863719,-500.0,0.00021999,2]
[398943714,1766011863732,-500.0,0.00021999,2]
[398943715,1766011863744,-500.0,0.00021999,2]
[398943716,1766011863757,-1078.56,0.00021999,2]